Cogmind - Beta 12 @@@ ROGUE MODE // 2023.05.04 @ 02:02:26 Player: youngster Result: Destroyed by D-53 Grenadier with Mini Grenade Launcher Performance ------------- Evolutions (0) 0 Regions Visited (2) 400 Robots Destroyed (39) 195 Value Destroyed (811) 811 Prototype IDs (0) 0 Alien Tech Used (0) 0 Bonus (0) 0 TOTAL SCORE: 1406 Bonus ------- None Cogmind --------- Core Integrity 0/250 Matter 300/300 Energy 60/100 System Corruption 0% Temperature Cool (12) Movement Treading (320) Ox2 Location -10/Mines Parts ------- > --- POWER (1) -------- (None) > --- PROPULSION (2) --- Light Treads > --- UTILITY (2) ------ High-capacity Storage Unit Tractor Beam > --- WEAPON (2) ------- EM Shotgun > --- INVENTORY (20) --- Light Treads Light Treads Armored Wheel Armored Wheel Armored Wheel Medium Matter Pod (100) Improved Terrain Scanner Seismic Detector Assault Rifle Assault Rifle Assault Rifle Assault Rifle Assault Rifle Light Assault Rifle EMP Blaster EMP Blaster Peak State ------------ > --- POWER ------------ Light Nuclear Core > --- PROPULSION ------- Light Treads Armored Wheel > --- UTILITY ---------- High-capacity Storage Unit Transport Network Coupler > --- WEAPON ----------- EM Shotgun EM Shotgun > --- INVENTORY -------- Ion Engine Light Treads Light Treads Light Treads Armored Wheel Armored Wheel Medium Matter Pod Tractor Beam EM Shotgun EM Shotgun Assault Rifle Assault Rifle Assault Rifle Assault Rifle Assault Rifle Light Assault Rifle [Rating: 14] Favorites ----------- Power Ion Engine Engine Ion Engine Power Core Light Nuclear Core Propulsion Light Treads Treads Light Treads Wheel Armored Wheel Utility Transport Network Coupler Device Tractor Beam Storage Small Storage Unit Processor Transport Network Coupler Weapon EM Shotgun Energy Gun EM Shotgun Ballistic Gun Light Assault Rifle Launcher EMP Blaster Build | -11 -10 -10 ------- Run | Jun Mat Min Slots Evolved . | . . . Power . | . . . Propulsion . | . . . Utility . | . . . Weapon . | . . . Parts Attached 42 | 6 28 8 Power 5 | 1 4 . Engine 4 | 1 3 . Core 1 | . 1 . Reactor . | . . . Propulsion 15 | 2 10 3 Treads 12 | 2 8 2 Leg . | . . . Wheel 3 | . 2 1 Hover . | . . . Flight . | . . . Utility 5 | 1 3 1 Device 1 | . . 1 Storage 3 | 1 2 . Processor 1 | . 1 . Hackware . | . . . Protection . | . . . Artifact . | . . . Weapon 17 | 2 11 4 Energy Gun 10 | 1 6 3 Energy Cannon . | . . . Ballistic Gun 4 | 1 3 . Ballistic Cannon . | . . . Launcher 3 | . 2 1 Special Weapon . | . . . Impact Weapon . | . . . Slashing Weapon . | . . . Piercing Weapon . | . . . Special Melee Weapon . | . . . Unidentified Prototypes . | . . . Parts Lost 8 | . 4 4 Power 2 | . 1 1 Propulsion 2 | . 1 1 Utility . | . . . Weapon 4 | . 2 2 Highest Loss Streak 2 | . 2 2 To Critical Strikes . | . . . Average Slot Usage (%) 91 | . 91 97 Engine 10 | . 9 12 Core 3 | . 3 . Treads 21 | . 22 18 Wheel 5 | . 5 10 Storage 14 | . 14 14 Processor 7 | . 7 8 Energy Gun 18 | . 17 26 Ballistic Gun 8 | . 9 . Naked Turns . | . . . Heaviest Build 52 | 13 52 52 Greatest Support 40 | 40 40 40 Greatest Overweight (x) 4 | . 4 4 Average Overweight (x) 1 | . 1 3 Largest Inventory Capacity 20 | 8 20 20 Average Capacity 13 | 7 12 20 Most Carried 20 | 3 20 18 Average Carried 12 | 2 11 17 Final Capacity 20 | 8 20 20 Final Carried 18 | 3 18 16 Class Distribution -------------------- 100% | Mutant Dominant Class ---------------- Mutant | -10/Materials Mutant | -10/Mines Resources | -11 -10 -10 ----------- Run | Jun Mat Min Matter Collected 846 | 229 529 88 Remotely 54 | . . 54 Salvage Created 1274 | . 1099 175 Parts 80 | . 70 10 Haulers Intercepted 2 | . 2 . Recyclers Shooed . | . . . Parts Field Recycled . | . . . Retrieved Matter . | . . . Parts Self-Destructed . | . . . Prevented . | . . . Kills | -11 -10 -10 ------- Run | Jun Mat Min Combat Hostiles Destroyed 27 | . 21 6 Guns 23 | . 20 3 AOE 3 | . . 3 Classes Destroyed 9 | . 8 1 Worker 3 | . 3 . Tunneler 2 | . 2 . Hauler 2 | . 2 . Recycler 2 | . 2 . Operator 1 | . 1 . Watcher 3 | . 3 . Swarmer 9 | . 6 3 Grunt 17 | . 15 2 Assembled 1 | . . 1 Best Kill Streak 4 | . 4 3 Combat Bots Only 3 | . 3 3 Max Kills in Single Turn 3 | . 2 3 Gunslinging 1 | . 1 . Exploded 3 | . . 3 Melee . | . . . Uniques/NPCs Destroyed . | . . . Combat | -11 -10 -10 -------- Run | Jun Mat Min Damage Taken 1367 | . 949 418 Core 250 | . 178 72 Absorbed by Shields . | . . . Regen/Repaired (Parts) 288 | . 288 . Core Remaining (%) 100 | 100 . . Volleys Fired 115 | . 104 11 Largest 2 | . 2 2 Hottest 90 | . 90 90 Shots Fired 218 | . 199 19 Gun 210 | . 193 17 Cannon . | . . . Launcher 8 | . 6 2 Special . | . . . Kinetic 87 | . 87 . Thermal 65 | . 65 . Explosive . | . . . Electromagnetic 66 | . 47 19 Robot Hit Streak 16 | . 16 10 Robot Miss Streak 5 | . 5 2 Penetration Max . | . . . Secondary Targets 2 | . 1 1 Max Gunslinging Chain 1 | . 1 1 Shots Hit Robots 149 | . 134 15 Core Hits 72 | . 58 14 Critical Kills . | . . . Critical Parts Destroyed . | . . . Critical Strikes 7 | . 7 . Burn 7 | . 7 . Melee Attacks . | . . . Impact . | . . . Slashing . | . . . Piercing . | . . . Sneak Attacks . | . . . Combat Hostiles . | . . . Follow-up Attacks . | . . . Damage Inflicted 2025 | . 1735 290 Guns 1814 | . 1581 233 Cannons . | . . . Explosions 192 | . 135 57 Melee . | . . . Ramming 19 | . 19 . Kinetic 559 | . 559 . Thermal 712 | . 712 . Explosive . | . . . Electromagnetic 735 | . 445 290 Impact . | . . . Slashing . | . . . Piercing . | . . . Highest Corruption . | . . . Average Corruption . | . . . Corruption Purged . | . . . Corruption Blocked . | . . . Overload Shots . | . . . Overflow Damage . | . . . Projectiles . | . . . Explosions . | . . . Melee . | . . . Knockbacks . | . . . Impact . | . . . Kinetic . | . . . Secondary . | . . . Self-Inflicted Damage 89 | . 31 58 Shots 5 | . 2 3 Rammed 5 | . 5 . Targets Rammed 6 | . 6 . Kicked . | . . . Crushed 1 | . 1 . Highest Temperature 212 | . 212 153 Average Temperature 62 | . 62 62 Received Heat Transfer 511 | . 438 73 Siege Activations . | . . . Robots Corrupted . | . . . Combat Hostiles . | . . . Parts Fried 4 | . 2 2 Impact Corruptions . | . . . Robots Melted 1 | . 1 . Combat Hostiles 1 | . 1 . Parts Melted 3 | . 3 . Heat Transferred 2370 | . 2370 . Parts Sabotaged . | . . . Parts Stolen . | . . . Parts Stripped . | . . . Power Chain Reactions 5 | . 4 1 Missiles Intercepted . | . . . Alert | -11 -10 -10 ------- Run | Jun Mat Min Peak Influence 261 | . 261 241 Initial 101 | . . 101 Average 122 | . 119 189 Maximum Alert Level 1 | . 1 1 Low Security (%) 69 | 100 68 64 Level 1 30 | . 31 35 Level 2 . | . . . Level 3 . | . . . Level 4 . | . . . Level 5 . | . . . High Security . | . . . Max Security . | . . . Squads Dispatched 7 | . 7 . Investigation 4 | . 4 . Extermination . | . . . Reinforcement 3 | . 3 . Assault . | . . . Garrison . | . . . Intercept . | . . . Searches Triggered . | . . . Construction Impeded . | . . . Haulers Reinforced . | . . . Active Scanning Responses . | . . . Cargo Convoy Interrupts . | . . . Stealth | -11 -10 -10 --------- Run | Jun Mat Min Distress Signals 1 | . 1 . Communications Jammed . | . . . Distress Signals . | . . . Times Spotted 45 | . 34 11 Peak Tracking Total 7 | . 5 7 Tactical Retreats 2 | . . 2 Traps | -11 -10 -10 ------- Run | Jun Mat Min Traps Triggered 5 | . 5 . Indirectly 1 | . 1 . Trap Hack Attempts . | . . . Triggered . | . . . Disarmed . | . . . Reprogrammed . | . . . Reused . | . . . Traps Extracted . | . . . Installed . | . . . Triggered . | . . . Machines | -11 -10 -10 ---------- Run | Jun Mat Min Machines Disabled 2 | . 1 1 Max in Single Turn 1 | . 1 1 Machines Repaired . | . . . Machines Sabotaged . | . . . Overloaded Fab Kills . | . . . Hacking | -11 -10 -10 --------- Run | Jun Mat Min Machines Accessed 7 | . 7 . Terminals 4 | . 4 . Fabricators . | . . . Repair Stations 1 | . 1 . Recycling Units 2 | . 2 . Scanalyzers . | . . . Garrison Access . | . . . Total Hacks 17 | . 17 . Successful 11 | . 11 . Failed 6 | . 6 . Catastrophic 3 | . 3 . Database Lockouts . | . . . Manual 9 | . 9 . Terminals 7 | . 7 . Fabricators . | . . . Repair Stations 8 | . 8 . Recycling Units 2 | . 2 . Scanalyzers . | . . . Garrison Access . | . . . Terminal Hacks 1 | . 1 . Robot Schematic 1 | . 1 . Fabricator Hacks . | . . . Repair Station Hacks 8 | . 8 . Scan Component 4 | . 4 . Repair 4 | . 4 . Recycling Unit Hacks . | . . . Scanalyzer . | . . . Garrison Access Hacks . | . . . Unauthorized Hacks 2 | . 2 . Terminals . | . . . Fabricators . | . . . Repair Stations . | . . . Recycling Units 2 | . 2 . Tunnel 2 | . 2 . Scanalyzers . | . . . Garrison Access . | . . . Data Cores Recovered . | . . . Used . | . . . Hacking Detections 5 | . 5 . Full Trace Events 2 | . 2 . Feedback Events . | . . . Feedback Blocked . | . . . Robot Schematics Acquired 1 | . 1 . Robots Built . | . . . Authchips . | . . . Time . | . . . Total Robot Build Rating . | . . . Part Schematics Acquired . | . . . Parts Built . | . . . Authchips . | . . . Time . | . . . Total Part Build Rating . | . . . Parts Repaired 4 | . 4 . Time 116 | . 116 . Parts Recycled . | . . . Recycled Matter . | . . . Retrieved Matter . | . . . Retrieved Components . | . . . Parts Scanalyzed . | . . . Part Schematics Acquired . | . . . Parts Damaged . | . . . Bothacking | -11 -10 -10 ------------ Run | Jun Mat Min Used RIF Installer . | . . . Robots Hacked . | . . . Non-combat . | . . . Combat . | . . . Robot Hacks Applied . | . . . Relay Couplers Released . | . . . Fabnet Peak Effective % . | . . . Robots Rewired . | . . . Allies Hacked . | . . . Hacks Repelled . | . . . Allies | -11 -10 -10 -------- Run | Jun Mat Min Total Allies . | . . . Largest Group . | . . . Highest-Rated Group . | . . . Highest-Rated Ally . | . . . Total Orders . | . . . Ally Attacks . | . . . Total Damage . | . . . Kills . | . . . Allies Corrupted . | . . . Allies Melted . | . . . Intel | -11 -10 -10 ------- Run | Jun Mat Min Robot Analysis Total . | . . . Derelict Logs Recovered 1 | . . 1 Drone Launches . | . . . Drone Recoveries . | . . . Exploration | -11 -10 -10 ------------- Run | Jun Mat Min Turns Passed 2636 | 63 2359 214 Spaces Moved 1040 | 36 905 99 Core 5 | 5 . . Treads 473 | 31 437 5 Legs . | . . . Wheels 562 | . 468 94 Hover . | . . . Flight . | . . . Fastest Speed 50 | 50 120 150 Average Speed 151 | 144 151 154 Slowest Speed 240 | 160 240 240 Overloaded Moves . | . . . Propulsion Burnouts . | . . . Robots Hopped . | . . . Cave-ins Triggered . | . . . Exploration Rate (%) 42 | 3 95 29 Regions Visited 2 Branch Regions 1 Pre-discovered Areas 2 | . 2 . Known Exits Taken . | . . . Unknown Exits Taken 2 | 1 1 . Scrap Searched . | . . . Spaces Dug 5 | . . 5 Terrain Destroyed 15 | . 10 5 Melee . | . . . Projectile . | . . . AOE 15 | . 10 5 Terrain Rammed . | . . . Walls Destroyed . | . . . Machines Disabled . | . . . Actions | -11 -10 -10 --------- Run | Jun Mat Min Total 1882 | 45 1699 138 Wait 633 | . 613 20 Move 1038 | 35 904 99 Hop . | . . . Pick Up 35 | 4 31 . Fast Attach 17 | 5 12 . Attach 9 | 1 7 1 Detach 1 | . 1 . Swap 16 | . 9 7 Drop 12 | . 12 . Fire 115 | . 104 11 Melee . | . . . Ram . | . . . Kick . | . . . Crush 6 | . 6 . Escape Stasis . | . . . Rewire . | . . . Trap . | . . . Miscellaneous . | . . . Route ------- -11/Junkyard -10/Materials (discovered 4 exits: [*Mat x3] / [*Min]) -10/Mines History --------- Turn | Location | Event 11 | -11/Junkyard | Discovered new exit (range 14) 64 | -11/Junkyard | Entered Materials 312 | -10/Materials | Build established: Mutant 651 | -10/Materials | Discovered new exit (range 13) 1185 | -10/Materials | Discovered new exit (range 15) 1285 | -10/Materials | Discovered new exit (range 11) 1680 | -10/Materials | Discovered new exit (range 15) 2058 | -10/Materials | Repaired Lgt. Treads 2085 | -10/Materials | Repaired Lgt. Treads 2094 | -10/Materials | Core integrity fell below 50% 2184 | -10/Materials | Repaired EM Shotgun? 2235 | -10/Materials | Repaired Arm. Wheel 2423 | -10/Materials | Entered Mines 2528 | -10/Mines | Deemed a non-threat by the Exiles lab entrance 2543 | -10/Mines | Learned Materials stockpile data 2574 | -10/Mines | Assembled infested the area 2636 | -10/Mines | Core integrity fell below 20% 2637 | -10/Mines | Destroyed by D-53 Grenadier with Mini Grenade Launcher Last Messages --------------- 02576_ K-01 Serf collects debris. 02576_ R-06 Scavenger collects Corrupted Aluminum Leg. 02580_ K-01 Serf collects debris. 02599_ as-99142 destroyed. 02600_ Acquired 10 matter. 02602_ Ion Engine destroyed. 02603_ C-30 ARC bursts open, deploying its payload. 02603_ D-53 Grenadier unfolds itself. 02604_ EM Shotgun destroyed. 02606_ as-28953 destroyed. 02611_ Acquired 5 matter. 02623_ as-40531 destroyed. 02628_ K-01 Serf collects debris. 02634_ The unstable cave ceiling collapses. 02634_ R-06 Scavenger collects Corrupted Aluminum Leg. 02635_ The unstable cave ceiling collapses. 02635_ K-01 Serf collects debris. 02636_ EM Shotgun destroyed. 02636_ Lgt. Treads destroyed. 02636_ K-01 Serf destroyed. Map ----- +----------------------------------------------------+ | ????????????????????????????????????????????? | | ????????????????????????????????????????????? | | ????????????????????????????????????????????? | | ????????????????????????????????????????????? | | ????????????????????????????????????????????? | | ????????????????????????????????????????????? | | ????????????????????????????????????????????? | | ????????????????????????????????????????????? | | ????????????????????????????????????????????? | | ?????????????????????????? ????????????????? | | ???????????????????? ???? ????????????????? | | ?????????????????### ???# ????????????????? | | ??????????????#### ??# ##??????????????? | | ??????????????# #? ##?????????????? | | ??????????????# # #? ##????????????? | | ??????????????# #? #????????????? | | ?????????????## # #?? #????????????? | | ?????????????? #?? #??????? ???? | | ????????#####?# #?? ##????? ??? | | ???????## ? #??? ##??? #??? | | ???????# # #??? ##?# #???? | | ???????# ###?# ## #????? | | ???????# " d d #?# % #?????? | | ??????# % # ### | #?????? | | ???????????????# =r % #??????? | | ????????????????# @ !%* ##????????? | | ????????????????## ####a ###?????????? | | ????????????????# ## ##???####????? | | ????????????????# ## #???## ###### | | ????????????????## # ### ##?## | | ?????????????????###?###?# ### | | ?????????????????????????### # | | ???????????????????????????# ## ##### | | ???????????????????????????# ###### ####?### | | ??????????????????????????? #???# #??# | | ??????????????????????????? #???### #?# # | | ??????????????????????????? ##?????# ##?# # | | ??????????????????????????? ##?????? #?## | | ??????????????????????????###???????? #### | | ????????????????????????????????????? ??# | | ?????????????????????????????????????#??# | | ????????????????????????????????????????# | | ????????????????????????????????????????## | | ?????????????????????????????????????????#### | | ????????????????????????????????????????????# | | ????????????????????????????????????????????? | | ????????????????????????????????????????????? | | ????????????????????????????????????????????? | | | | | +----------------------------------------------------+ Best States ------------- Heat Dissipation 25 Energy Generation 14 Energy Capacity 250 Matter Stores 300 Matter Capacity 300 Sight Range 16 Terrain Scan Density 10 Evasion (%) 40 Recoil Reduction 2 Item Schematics ----------------- None Robot Schematics ------------------ M-13 Machinist | -10/Materials | Hacked Fabricated ------------ Nothing Alien Tech Used ----------------- None Achievements -------------- None Challenges ------------ None Game ------ Seed HugeResetRailgun Manual? 0 Play Time 00:20:36 Cumulative 406.7 hours Start 2023.03.11 @ 07:48:20 End 2023.05.04 @ 02:02:26 Sessions 9 Manual Loads 0 Difficulty Rogue Special Mode None Game No. 177 Rogue 177 Adventurer 0 Explorer 0 Win Type - Total 9 Types 6/0/1/1/0/0/0/1/0 Lore% 89 Gallery% 92 Achievement% 71 Wizard Run 0 Options --------- ASCII 1 Keyboard 1 Movement Vi Keybinds 0 Fullscreen 2 Font 18/Cog Map View 76x50 Tactical HUD 1 Map Filters NONE Filters NONE Steam 0 RUN: 8cac56c4-3db2-445a-a133-1dcdc60d5c50